[Event "ITT 1st Parada Jamundi 2022"]
[Site "Jamundi Valle"]
[Date "2022.12.11"]
[Round "9.15"]
[White "Luligo Bejarano, Luis Angel"]
[Black "Navia Alvarez, Edwin Adrian"]
[Result "1-0"]
[ECO "A36"]
[WhiteElo "1675"]
[BlackElo "2023"]
[Annotator "TA"]
[PlyCount "75"]
[EventDate "2022.12.05"]
[EventType "swiss"]
[EventCountry "COL"]
[SourceTitle "playchess.com"]
[Source "ChessBase"]
[SourceQuality "1"]
[TimeControl "5400+30"]

{[%evp 14,75,6,6,8,5,7,14,16,14,22,-2,14,16,35,36,37,22,63,48,69,8,27,-9,41,-14,162,0,76,0,70,6,78,28,136,108,179,179,366,351,409,252,302,306,663,716,702,505,512,462,712,691,677,504,458,189,446,444,404,424,29983,29984,29993,29994]} 1. e4 {[%emt 0:00:16]} c5 {[%emt 0:00:22]} 2. c4 {[%emt 0:00:22]} Nc6 {[%emt 0:00:06]} 3. Ne2 {[%emt 0:00:11]} d6 {[%emt 0:00:26]} 4. g3 {[%emt 0:00:38]} g6 {[%emt 0:00:22]} 5. Bg2 {[%emt 0:00:47]} Bg7 {[%emt 0:00:05]} 6. Nbc3 {[%emt 0:00:11]} e5 {[%emt 0:00:26]} 7. d3 {[%emt 0:00:33]} Nge7 {[%emt 0:00:10]} 8. O-O {[%emt 0:00:29]} a6 {[%emt 0:00:19] A36: Symmetrical English vs ...g6: 4 Bg2 Bg7.} 9. Rb1 {[%emt 0:01:21]} O-O {[%emt 0:19:04]} 10. a3 {[%emt 0:02:10]} Nd4 {[%emt 0:11:21] The position is equal.} (10... Bg4 {is more complex.} 11. b4 b5 12. Bg5 Nd4) 11. b4 {[%emt 0:06:59]} b6 {[%emt 0:14:22] [#]} 12. h3 $146 {[%emt 0:07:02]} (12. f4 {feels hotter.} b5 13. cxb5 exf4 14. bxc5 dxc5 15. b6) ({Predecessor:} 12. f4 Ra7 13. bxc5 bxc5 14. Nxd4 cxd4 15. Na4 Be6 16. Bd2 f5 17. fxe5 dxe5 18. Nc5 {1-0 (39) Shtereva,S (2118)-Boneva,Z (2010) Sunny Beach 2005}) 12... Ra7 {[%emt 0:00:43]} 13. bxc5 {[%emt 0:02:08]} Nxe2+ {[%emt 0:07:03]} (13... bxc5 {is interesting.} 14. Bg5 f6 15. Bd2 Nec6) 14. Qxe2 {[%emt 0:01:15]} bxc5 {[%emt 0:00:36]} 15. Rb3 {[%emt 0:20:04]} Bd7 {[%emt 0:02:08]} 16. Be3 {[%emt 0:01:30]} h6 {[%emt 0:12:07]} 17. f3 {[%emt 0:07:58]} (17. Rfb1) (17. Rfb1 $14) 17... f5 $11 {[%emt 0:02:35]} 18. Bf2 {[%emt 0:02:05]} (18. Qd2) (18. Qd2 $5 {[%cal Re3h6]}) 18... h5 {[%emt 0:08:31]} (18... f4) (18... f4 $11) 19. Rfb1 {[%emt 0:02:42]} (19. exf5 $14 Nxf5 20. Rfb1) 19... g5 $2 {[%emt 0:06:00]} (19... f4) (19... f4 $1 $11 {and Black stays safe.}) 20. Qb2 $2 {[%emt 0:01:49]} (20. exf5 Nxf5 21. f4) (20. exf5 $1 $18 {And now g4 would win.} Bxf5 21. Rb6) 20... Bc6 {[%emt 0:13:44]} (20... f4 $11) 21. Rb6 {[%emt 0:06:55]} (21. Rb8 Qxb8 22. Qxb8 Rxb8 23. Rxb8+ Kf7 24. exf5) (21. Rb8 $16 Qc7 22. Qb6) 21... Qd7 {[%emt 0:01:14]} (21... f4 $11) 22. Nd5 {[%emt 0:00:30]} (22. exf5 $1 $14 Nxf5 23. Ne4) 22... Nc8 {[%emt 0:00:30] [#]} (22... Nxd5 $11 {keeps the balance.} 23. exd5 Ba4) 23. Rb8 {[%emt 0:00:30] White has more active pieces.} (23. Rxc6 $1 $16 Qxc6 24. exf5) 23... Bxd5 {[%emt 0:00:00] White leaves nothing to chance now.} (23... f4 $11) 24. cxd5 $16 {[%emt 0:08:25]} (24. exd5 $6 f4 $14) 24... fxe4 {[%emt 0:00:00]} (24... f4 $16) 25. dxe4 $18 {[%emt 0:34:05]} Rf7 $2 {[%emt 0:02:30]} (25... h4 26. g4 (26. gxh4 gxh4 27. Bxh4 Bh6 $16) 26... Kh7) 26. Qd2 {[%emt 0:00:00]} Bf6 {[%emt 0:00:30]} 27. Kh2 {[%emt 0:00:00] Threatens to win with h4.} Kh7 {[%emt 0:00:00]} 28. h4 {[%emt 0:00:00]} Rg7 {[%emt 0:00:00]} (28... g4 29. fxg4 hxg4) 29. hxg5 {[%emt 0:00:00]} Bxg5 {[%emt 0:00:00]} 30. Be3 {[%emt 0:00:00]} Bxe3 {[%emt 0:00:00]} 31. Qxe3 {[%emt 0:00:00] Strongly threatening Bh3.} Ne7 {[%emt 0:00:00]} (31... Rg8 $142 32. Bh3 Qg7 33. Bf5+ (33. Rxc8 $2 {leads to mate.} Qxg3+ 34. Kh1 Qxh3#) 33... Kh8) 32. Bh3 {[%emt 0:00:00]} Qa4 {[%emt 0:00:00]} 33. R1b2 {[%emt 0:00:00] aiming for Be6.} (33. Rh8+ Kxh8 34. Qh6+ Rh7 35. Rb8+ Ng8 36. Qf6+ Rhg7 37. Be6 Kh7 38. Rxg8) 33... Qd4 {[%emt 0:00:00]} 34. Qe2 {[%emt 0:00:00]} (34. Qc1 $142) 34... h4 $2 {[%emt 0:00:34]} (34... Rg6 {was called for.} 35. Be6 Kg7) 35. f4 {[%emt 0:05:00][%cal Re2h5]} hxg3+ {[%emt 0:01:40] [#]} 36. Kh1 $1 {[%emt 0:00:00][%cal Re2h5] The board is on fire.} ({Not} 36. Kg2 Qf2+ 37. Qxf2 gxf2+ 38. Kxf2 exf4 $16) 36... g2+ {[%emt 0:00:22]} (36... exf4 $2 37. Qh5#) (36... Kh6 $18) 37. Bxg2 {[%emt 0:00:00][%cal Re2h5]} Rg6 {[%emt 0:00:10]} 38. Qh5+ {[%emt 0:01:30] Weighted Error Value: White=0.59/Black=0.89} 1-0

[Event "ITT 1st Parada Jamundi 2022"]
[Site "Jamundi Valle"]
[Date "2022.12.10"]
[Round "9.16"]
[White "Franco, Jhonier"]
[Black "Vacca, Leonardo"]
[Result "1-0"]
[ECO "B20"]
[WhiteElo "1900"]
[BlackElo "2041"]
[Annotator "TA"]
[PlyCount "45"]
[EventDate "2022.12.05"]
[EventType "swiss"]
[EventCountry "COL"]
[SourceTitle "playchess.com"]
[Source "ChessBase"]
[SourceQuality "1"]
[TimeControl "5400+30"]

{[%evp 9,45,-16,27,27,27,26,23,-35,-13,-16,-13,-12,-8,-41,-35,-43,-37,-75,-66,-95,-42,-57,-69,-122,-43,-72,-72,-72,-61,-62,-63,-120,-28,-39,-22,-54,656,661]} 1. e4 {[%emt 0:00:04]} c5 {[%emt 0:00:09]} 2. b4 {[%emt 0:00:07]} b6 {[%emt 0:01:18]} 3. b5 {[%emt 0:00:42]} Bb7 {[%emt 0:01:48]} 4. Nc3 {[%emt 0:00:11]} Nf6 {[%emt 0:00:40]} 5. e5 {[%emt 0:01:43] [#]} Ne4 $146 {[%emt 0:01:50]} ({Predecessor:} 5... Nd5 6. Qf3 Qc7 7. Bc4 Qxe5+ 8. Nge2 e6 9. Bb2 Nxc3 10. Qxb7 Qe4 11. Qc8+ Ke7 12. Bd3 Qxg2 13. Rg1 Qxh2 14. Bxc3 {1-0 (14) Frink,F (2250)-Grimm,D (2054) Heviz 2011}) 6. Nxe4 {[%emt 0:06:59] B20: Sicilian: Unusual White 2nd moves.} Bxe4 {[%emt 0:00:08]} 7. Qg4 {[%emt 0:00:07]} Bb7 {[%emt 0:02:05]} 8. Bc4 {[%emt 0:01:27]} (8. Bb2 $11) 8... h5 {[%emt 0:05:42]} 9. Qf4 {[%emt 0:01:05][%csl Gf4][%cal Rc4f7]} e6 {[%emt 0:01:11]} 10. Nf3 {[%emt 0:00:17]} Be7 {[%emt 0:02:42][%cal Bf8e7,Be7d6,Bd6f4][%mdl 32]} 11. h4 {[%emt 0:00:24] Against g5} d5 {[%emt 0:00:14]} 12. exd6 {[%emt 0:00:19]} Bxd6 {[%emt 0:01:05]} 13. Qe3 {[%emt 0:00:48] [#]} Qf6 $1 {[%emt 0:01:08] Prevents Bb2.} 14. Rb1 {[%emt 0:06:09]} Bxf3 {[%emt 0:02:04]} (14... Nd7 $17 {And now ...Qg6 would win.} 15. Bd3 Ne5) 15. gxf3 {[%emt 0:00:43] Black must now prevent Bd5.} Nd7 {[%emt 0:02:47]} 16. Bd5 {[%emt 0:03:29]} (16. Qe4 $15 O-O 17. Rg1) 16... Rc8 {[%emt 0:06:02]} ({Black should try} 16... Bf4 $17 17. Qe4 Rd8) 17. Bc6 {[%emt 0:01:38] [#]} Bf4 $1 {[%emt 0:08:42]} 18. Qe4 {[%emt 0:04:08]} Rc7 {[%emt 0:00:52]} 19. Bb2 {[%emt 0:00:15]} e5 {[%emt 0:00:32]} 20. d4 {[%emt 0:00:34]} (20. Kf1 $15) 20... O-O {[%emt 0:02:45]} (20... cxd4 $17 {Strongly threatening ...0-0.} 21. Ba3 Qe6) 21. d5 {[%emt 0:03:08]} Qd6 {[%emt 0:02:48]} 22. Rg1 {[%emt 0:00:13][%cal Og1g7]} f5 $2 {[%emt 0:00:50][%mdl 8192] [#]} (22... Nf6 $15 23. Qd3 Ne8) 23. Qxf4 $3 {[%emt 0:00:27][%mdl 512] Weighted Error Value: White=0.22 (precise) /Black=0.53} 1-0

[Event "ITT 1st Parada Jamundi 2022"]
[Site "Jamundi Valle"]
[Date "2022.12.10"]
[Round "9.17"]
[White "Mata Zambrano, Luis Enrique"]
[Black "Simancas Maradei, Miguel Alejand"]
[Result "0-1"]
[ECO "B84"]
[WhiteElo "1544"]
[BlackElo "2027"]
[Annotator "TA"]
[PlyCount "44"]
[EventDate "2022.12.05"]
[EventType "swiss"]
[EventCountry "COL"]
[SourceTitle "playchess.com"]
[Source "ChessBase"]
[SourceQuality "1"]
[TimeControl "5400+30"]

{[%evp 15,44,14,16,15,10,11,29,0,0,0,0,-39,0,-10,0,0,-12,0,2,0,8,0,4,-121,-118,-123,-122,-432,-435,-435,-420]} 1. e4 {[%emt 0:04:26]} c5 {[%emt 0:00:42]} 2. Nf3 {[%emt 0:00:52]} d6 {[%emt 0:00:01]} 3. d4 {[%emt 0:00:24]} cxd4 {[%emt 0:00:03]} 4. Nxd4 {[%emt 0:00:10]} Nf6 {[%emt 0:00:04]} 5. Nc3 {[%emt 0:00:06]} a6 {[%emt 0:00:04]} 6. Be2 {[%emt 0:00:24]} e6 {[%emt 0:02:08]} 7. O-O {[%emt 0:02:06]} Be7 {[%emt 0:00:20]} 8. a4 {[%emt 0:00:29]} O-O {[%emt 0:03:40]} 9. a5 {[%emt 0:00:23] B84: Sicilian Scheveningen: 6 Be2 a6, lines without early Be3.} e5 {[%emt 0:01:12]} 10. Nb3 {[%emt 0:00:16]} Nc6 {[%emt 0:01:05][%cal Bb8c6,Bc6e7,Be7g6,Bg6e5,Be5d3][%mdl 32]} 11. Be3 {[%emt 0:00:25] White has an edge.} Be6 {[%emt 0:00:38]} 12. Bb6 {[%emt 0:00:36]} Qd7 {[%emt 0:10:31]} 13. Bf3 {[%emt 0:05:50]} Bd8 {[%emt 0:20:16] [#]} 14. Nd5 $146 {[%emt 0:03:28]} ({Predecessor:} 14. Na4 Rb8 15. Qd2 Bxb6 16. Nxb6 Qc7 17. c4 Nd7 18. Nd5 Qd8 19. Rfd1 Nc5 20. Nc1 {½-½ (33) Vdovin,V-Eliseev,A (2030) Tula 2004}) 14... Bxd5 {[%emt 0:01:45]} 15. exd5 {[%emt 0:00:56]} Ne7 {[%emt 0:00:15] White should prevent ...Bxb6.} 16. Bxd8 {[%emt 0:03:12]} Rfxd8 {[%emt 0:01:59]} 17. c4 {[%emt 0:00:09]} Rac8 {[%emt 0:02:14]} 18. Qd3 {[%emt 0:03:33]} Ng6 {[%emt 0:05:06] Strongly threatening ...Nf4.} 19. g3 {[%emt 0:01:19] [#] Inhibits Nf4.} (19. Nd2 $11) 19... e4 $1 $17 {[%emt 0:02:01]} 20. Bxe4 {[%emt 0:00:14] Hoping for Bf5.} Ne5 {[%emt 0:00:01][%csl LRc4,LRd3]} 21. Bf5 {[%emt 0:00:29][%mdl 8192]} Nxd3 $19 {[%emt 0:00:47] Pair of Knights!} 22. Bxd7 {[%emt 0:00:30]} Rxd7 {[%emt 0:00:24] Weighted Error Value: White=0.60/Black=0.04 (flawless)} 0-1

[Event "ITT 1st Parada Jamundi 2022"]
[Site "Jamundi Valle"]
[Date "2022.12.11"]
[Round "9.19"]
[White "Quiceno Ramirez, Edwin Alejandro"]
[Black "Renteria, Rolando"]
[Result "0-1"]
[ECO "E98"]
[WhiteElo "1787"]
[BlackElo "2046"]
[Annotator "TA"]
[PlyCount "90"]
[EventDate "2022.12.05"]
[EventType "swiss"]
[EventCountry "COL"]
[SourceTitle "playchess.com"]
[Source "ChessBase"]
[SourceQuality "1"]
[TimeControl "5400+30"]

{[%evp 23,90,44,64,52,53,45,62,31,72,39,60,15,21,9,18,0,0,0,12,-7,12,-63,-33,-77,-65,-48,-19,-22,-5,-33,-40,-86,-93,-159,-156,-160,-36,-381,-218,-184,-193,-379,-400,-359,-348,-943,-919,-1042,-612,-550,-261,-410,-389,-379,-353,-282,-255,-880,-827,-1443,-1431,-1162,-908,-928,-866,-29989,-29990,-29996,-29997]} 1. d4 {[%emt 0:00:49]} Nf6 {[%emt 0:00:09]} 2. c4 {[%emt 0:00:07]} g6 {[%emt 0:00:02]} 3. Nc3 {[%emt 0:00:09]} Bg7 {[%emt 0:00:02]} 4. e4 {[%emt 0:00:15]} d6 {[%emt 0:00:02]} 5. Nf3 {[%emt 0:00:17]} O-O {[%emt 0:00:03]} 6. Be2 {[%emt 0:00:06]} e5 {[%emt 0:00:06]} 7. O-O {[%emt 0:00:14]} Nc6 {[%emt 0:00:02]} 8. d5 {[%emt 0:00:10]} Ne7 {[%emt 0:00:02]} 9. Ne1 {[%emt 0:00:02]} Ne8 {[%emt 0:00:17]} 10. Nd3 {[%emt 0:00:20]} f5 {[%emt 0:00:10]} 11. f3 {[%emt 0:00:10]} f4 {[%emt 0:00:30]} 12. Bd2 {[%emt 0:00:08]} g5 {[%emt 0:00:21]} 13. Be1 {[%emt 0:00:30] E98: King's Indian: Classical Main Line: 9 Ne1.} Rf6 {[%emt 0:05:19]} 14. c5 {[%emt 0:03:28]} Rh6 {[%emt 0:02:30]} 15. b4 {[%emt 0:01:15] White is slightly better.} Nf6 {[%emt 0:00:13] [#]} 16. Nf2 $146 {[%emt 0:11:06]} ({Predecessor:} 16. Rc1 Qe8 17. Nf2 Bd7 18. Qb3 Qh5 19. h3 Qe8 20. c6 Bc8 21. cxb7 Bxb7 22. Nb5 {1-0 (53) Prieb,R (1426)-Farokhi,K (1262) Willingen 2015}) 16... Rg6 {[%emt 0:00:19]} 17. cxd6 {[%emt 0:00:22]} cxd6 {[%emt 0:00:08]} 18. Rc1 {[%emt 0:02:40]} a6 {[%emt 0:01:43] Prevents Nb5.} 19. a4 {[%emt 0:00:40]} h5 {[%emt 0:00:12]} 20. h3 {[%emt 0:00:56]} Bf8 {[%emt 0:01:04]} (20... g4 {keeps more tension.} 21. fxg4 hxg4 22. Nxg4 Bxg4 23. hxg4 Qb6+) 21. a5 {[%emt 0:03:14]} b5 {[%emt 0:03:38] Against Na4} 22. Rc2 {[%emt 0:17:17]} (22. axb6 Qxb6 23. Kh1) ({White should try} 22. axb6 $11 Qxb6 23. Kh1) 22... Qd7 {[%emt 0:02:18]} 23. Na2 {[%emt 0:01:18]} Qa7 {[%emt 0:04:47]} 24. Qc1 {[%emt 0:09:19]} Ne8 {[%emt 0:00:06]} (24... g4 {feels hotter.} 25. Rc7 Bb7 26. Kh1 g3) 25. Kh2 {[%emt 0:07:47] Inhibits g4.} Bh6 {[%emt 0:01:23][%cal Og5g4]} 26. Qd1 {[%emt 0:02:56] Against g4} Nf6 {[%emt 0:03:34]} (26... Bd7 {simplifies} 27. Nc1 Nf6 28. Ncd3 Rf8) 27. Nd3 {[%emt 0:07:11]} (27. Qc1 Qb8 28. Rh1 (28. Rc7 Ra7)) (27. Nc1 $15 {is more appropriate.}) 27... g4 $17 {[%emt 0:00:31]} 28. Nxe5 {[%emt 0:03:43]} dxe5 {[%emt 0:01:48]} 29. d6 {[%emt 0:00:10]} gxh3 {[%emt 0:12:19]} (29... Ne8 30. dxe7 (30. Rxc8 Rxc8) 30... g3+ 31. Kh1 Bxh3) (29... g3+ $17 30. Kh1 Be6 $1) 30. dxe7 $4 {[%emt 0:04:48][%mdl 8192] Now White is beyond hope.} (30. Rc7 Qd4 31. Rxe7) ({White has to play} 30. Rc7 $1 $15 Rxg2+ 31. Kh1) 30... Qxe7 {[%emt 0:00:57]} (30... hxg2 31. Qd8+ Kf7 32. Rg1) ({And not} 30... hxg2 31. Qd8+ Kf7 32. Rg1 $11) (30... Rxg2+ $142 31. Kh1 Qxe7) 31. Rg1 $19 {[%emt 0:06:48]} Be6 {[%emt 0:02:57] White must now prevent ...Rd8.} 32. Nc1 $2 {[%emt 0:01:39]} (32. gxh3 Rxg1 33. Kxg1) (32. gxh3 Rxg1 33. Kxg1) 32... Kh8 {[%emt 0:04:18]} 33. Bf1 {[%emt 0:00:39]} Rag8 {[%emt 0:00:22]} 34. Qd2 $2 {[%emt 0:01:58] [#]} (34. Kh1) (34. Kh1) 34... Rg3 $1 {[%emt 0:01:00][%cal Of6e4][%mdl 512] And now ...Nxe4! would win.} 35. Qc3 {[%emt 0:00:35]} (35. gxh3 Rxg1) 35... hxg2 {[%emt 0:01:03]} 36. Rgxg2 {[%emt 0:05:25][%cal Oc3e5] [#]} Nd7 {[%emt 0:02:18]} 37. Bxg3 {[%emt 0:03:23]} (37. Kh1 $142) 37... fxg3+ {[%emt 0:00:08]} 38. Kg1 {[%emt 0:00:23]} h4 {[%emt 0:00:28] Hoping for ...h3. Chess con chili.} 39. Ne2 {[%emt 0:00:38]} Bc4 {[%emt 0:01:52] ...Nf6 is the strong threat. This pair of bishops is nice.} 40. Rd2 $2 {[%emt 0:05:06]} (40. f4) 40... Nf6 {[%emt 0:00:47]} 41. Rd3 {[%emt 0:01:19]} Bxd3 {[%emt 0:01:04]} 42. Qxd3 {[%emt 0:00:01]} Qxb4 {[%emt 0:01:24]} 43. Kh1 {[%emt 0:00:31]} Qe1 {[%emt 0:01:10]} 44. Nc3 {[%emt 0:00:34]} h3 {[%emt 0:00:23]} 45. Rg1 {[%emt 0:00:28]} g2+ {[%emt 0:00:07] Weighted Error Value: White=1.08/Black=0.61} 0-1

[Event "ITT 1st Parada Jamundi 2022"]
[Site "Jamundi Valle"]
[Date "2022.12.11"]
[Round "9.20"]
[White "Rodriguez, Juan Gabriel"]
[Black "Cortes Castro, Jhonny"]
[Result "0-1"]
[ECO "C44"]
[WhiteElo "1665"]
[BlackElo "1954"]
[Annotator "TA"]
[PlyCount "166"]
[EventDate "2022.12.05"]
[EventType "swiss"]
[EventCountry "COL"]
[SourceTitle "playchess.com"]
[Source "ChessBase"]
[SourceQuality "1"]
[TimeControl "5400+30"]

{[%evp 11,166,-4,0,-54,-57,-72,149,107,122,122,108,116,160,97,236,14,12,-59,-53,-57,-39,-210,-204,-212,-201,-193,-55,-74,-41,-50,-49,-69,-9,-5,-5,-33,-53,-79,-77,-98,-51,-56,0,-126,-97,-100,-108,-100,-91,-96,-90,-138,-135,-136,-127,-136,-138,-168,-137,-171,-123,-233,-228,-241,-163,-191,-190,-297,-238,-389,-389,-341,-279,-279,-281,-267,-243,-262,-225,-248,-189,-214,-206,-229,-229,-229,-146,-148,-175,-208,-178,-233,-233,-233,-227,-227,-227,-227,-227,-227,-227,-218,-140,-124,-136,-287,-286,-294,-292,-285,-284,-283,-277,-261,-246,-262,-230,-215,-145,-1536,-1536,-1325,-979,-946,-820,-636,-8,-8,-8,-8,107,107,107,107,107,39,39,8,8,-8,-8,-8,-1,-29963,-29963,-29973,-29974,-29974,-29975,-29973,-29976,-29976,-29977,-29969,29980,29981,29984]} 1. e4 {[%emt 0:01:11]} e5 {[%emt 0:00:10]} 2. Nf3 {[%emt 0:00:04]} Nc6 {[%emt 0:00:05]} 3. d4 {[%emt 0:00:09]} exd4 {[%emt 0:00:08]} 4. Bc4 {[%emt 0:00:03]} Bb4+ {[%emt 0:00:48]} 5. c3 {[%emt 0:00:11]} dxc3 {[%emt 0:00:14]} 6. bxc3 {[%emt 0:00:07]} Ba5 {[%emt 0:01:59]} 7. Qb3 {[%emt 0:00:39] C44: Ponziani Opening and Scotch Gambit.} (7. O-O $11) 7... Qe7 $15 {[%emt 0:00:12]} 8. O-O {[%emt 0:00:05][%cal Oe4e5]} h6 $2 {[%emt 0:00:21] Prevents e5.} (8... Nf6 $17) 9. Ba3 {[%emt 0:00:14][%mdl 1024] White has strong compensation. White is clearly better.} Qf6 {[%emt 0:01:01]} 10. e5 $1 {[%emt 0:03:13]} Qg6 {[%emt 0:00:01] [#]} 11. Nbd2 $146 {[%emt 0:00:37]} ({Predecessor:} 11. Nh4 Qh5 12. Nf3 Nge7 13. Re1 O-O 14. Re4 Bb6 15. Bd3 g5 16. h3 Qg6 17. Qc2 {0-1 (35) Demic,A (1673)-Haskovic,S (1942) Sarajevo 2015}) 11... Nge7 {[%emt 0:00:32][%cal Bg8e7,Be7g6,Bg6e5][%mdl 32]} 12. Rfe1 {[%emt 0:02:53]} Bb6 {[%emt 0:00:08]} (12... O-O $16) 13. Rad1 $2 {[%emt 0:00:45]} (13. Nh4 $18 Qh5 14. Re4) 13... O-O $1 $11 {[%emt 0:00:15][%cal Od7d5]} 14. Qb1 {[%emt 0:00:35]} (14. Nh4 $11 Qh5 15. Nhf3) 14... Qxb1 $1 $15 {[%emt 0:00:11] The board is on fire.} 15. Rxb1 {[%emt 0:00:18]} Re8 {[%emt 0:00:10]} 16. Ne4 $2 {[%emt 0:00:37]} ({White should play} 16. Bf1 $15) 16... Ng6 $19 {[%emt 0:00:17]} 17. Nc5 {[%emt 0:09:49]} Ncxe5 {[%emt 0:00:57]} 18. Nxe5 {[%emt 0:00:24]} Rxe5 {[%emt 0:00:09]} (18... Nxe5 $19 19. Nd3 d6) 19. Nd3 $15 {[%emt 0:00:16] [#]} d6 {[%emt 0:02:20] And now ...Rxe1+ would win.} 20. Nxe5 {[%emt 0:00:08]} Nxe5 {[%emt 0:00:08]} 21. Bd5 {[%emt 0:07:17]} Be6 {[%emt 0:01:17]} (21... g5 $15) 22. Bxb7 $11 {[%emt 0:00:50]} Rb8 $36 {[%emt 0:00:01][%mdl 2048] Black fights for an advantage.} 23. Be4 {[%emt 0:00:43]} Bxa2 {[%emt 0:00:02]} 24. Rb2 {[%emt 0:02:41]} Be6 {[%emt 0:00:09]} 25. Rbe2 {[%emt 0:00:58]} Bg4 {[%emt 0:01:40]} (25... a5 $17 26. Ra1 a4) 26. Rc2 $15 {[%emt 0:00:31]} Be6 {[%emt 0:00:34]} ({Black should try} 26... Bd7 $15 27. Bd5 a5) 27. h3 {[%emt 0:00:36]} (27. Rce2 $1 $11 {was the only way to keep the balance.}) 27... f5 {[%emt 0:00:13]} 28. Bf3 {[%emt 0:00:34]} Nxf3+ {[%emt 0:00:07]} 29. gxf3 {[%emt 0:00:07]} Bd5 {[%emt 0:00:13]} 30. Kg2 {[%emt 0:00:31]} Bc4 $1 {[%emt 0:01:07]} 31. Bc1 {[%emt 0:01:28]} (31. Rb2 $142) 31... Kf7 {[%emt 0:00:25]} 32. h4 {[%emt 0:00:15]} a5 {[%emt 0:00:17][%cal Ba7a5,Ba5a4][%mdl 32]} 33. Be3 {[%emt 0:00:20]} a4 {[%emt 0:00:08]} 34. Ra1 {[%emt 0:00:59]} Bb3 {[%emt 0:00:08]} 35. Rcc1 {[%emt 0:00:49]} d5 {[%emt 0:00:58]} (35... c5 $19 36. Bf4 Ke6) 36. Bf4 {[%emt 0:01:15]} (36. Bxb6 $17 cxb6 37. h5) 36... Re8 $19 {[%emt 0:00:59]} 37. Kf1 {[%emt 0:01:02]} Bc4+ {[%emt 0:00:17]} 38. Kg2 {[%emt 0:00:15]} Re2 {[%emt 0:00:49]} 39. Rf1 {[%emt 0:00:27]} (39. Rxa4 $142 Rxf2+ 40. Kg3) 39... Bb3 {[%emt 0:00:20]} 40. Rae1 $2 {[%emt 0:00:32]} (40. h5 {keeps fighting.}) 40... Rxe1 {[%emt 0:01:05]} 41. Rxe1 {[%emt 0:00:03][%mdl 4096] Endgame KRB-KB} a3 {[%emt 0:00:04]} 42. Bc1 {[%emt 0:00:28]} a2 {[%emt 0:00:01]} 43. Bb2 {[%emt 0:00:01]} Bc4 {[%emt 0:00:37]} 44. f4 {[%emt 0:02:45]} Bc5 {[%emt 0:00:31]} 45. Kf3 {[%emt 0:00:18]} Bd3 {[%emt 0:00:42]} 46. Rd1 {[%emt 0:01:05]} Bc2 {[%emt 0:01:42] A strong pair of Bishops.} 47. Rd2 {[%emt 0:00:22] [#]} Ba3 $1 {[%emt 0:00:26][%mdl 512]} 48. Ba1 {[%emt 0:00:16]} Bb1 {[%emt 0:00:24]} 49. Ke2 {[%emt 0:00:55]} c6 {[%emt 0:00:19]} 50. Rd4 {[%emt 0:02:32]} Bc2 {[%emt 0:00:55] Prevents Ra4.} 51. Rd2 {[%emt 0:00:35]} (51. Rb4 {might work better.}) 51... Bb3 {[%emt 0:00:03]} 52. Kf3 {[%emt 0:01:17]} Be7 {[%emt 0:01:39]} 53. Rb2 {[%emt 0:01:16] [#]} Bc4 {[%emt 0:00:01]} 54. Rb7 {[%emt 0:00:37]} Ke6 {[%emt 0:00:08]} 55. h5 {[%emt 0:00:23]} Bf6 {[%emt 0:00:02]} 56. Ke3 {[%emt 0:00:35]} c5 {[%emt 0:00:21][%cal Of6c3] aiming for ...Bxc3!} 57. Ra7 {[%emt 0:00:09]} Kd6 {[%emt 0:00:14] White must now prevent ...Kc6.} 58. Ra4 $2 {[%emt 0:01:11]} (58. Kd2 $17) 58... Kc6 {[%emt 0:00:15]} 59. Ra7 {[%emt 0:00:26]} Kb6 {[%emt 0:00:12]} 60. Ra4 {[%emt 0:00:05] Against d4+} Kb5 {[%emt 0:02:04]} 61. Ra3 {[%emt 0:00:21]} d4+ {[%emt 0:02:17]} 62. Kd2 {[%emt 0:01:00]} d3 {[%emt 0:00:31]} 63. Ra7 {[%emt 0:00:44]} Kb6 {[%emt 0:00:15] Against Rb7+} 64. Rd7 {[%emt 0:00:16]} Kc6 {[%emt 0:00:16]} 65. Rxd3 $2 {[%emt 0:00:30][%mdl 8192]} (65. Ra7 $17) 65... Bxd3 {[%emt 0:00:09]} 66. Kxd3 $17 {[%emt 0:00:06] KB-KB} Be7 {[%emt 0:00:31]} 67. Kc4 {[%emt 0:01:21]} Bd6 {[%emt 0:00:01]} 68. Kb3 {[%emt 0:00:20]} Bxf4 $2 {[%emt 0:00:18]} (68... c4+ $19 69. Kxa2 Kd5) 69. c4 $1 $11 {[%emt 0:00:17]} Kd6 $1 {[%emt 0:00:02] ( -> ...Be5)} 70. Bxg7 {[%emt 0:00:20]} Be5 {[%emt 0:00:20] [#]} (70... a1=B $11 {remains equal.} 71. Bxa1 Be5 72. Bxe5+ Kxe5) 71. Bf8+ $1 $16 {[%emt 0:00:24]} Ke6 {[%emt 0:00:13]} 72. Kxa2 {[%emt 0:00:09]} Bd4 {[%emt 0:00:01]} 73. Bxh6 {[%emt 0:00:45]} ({Better is} 73. f4 $16 {[%cal Oa2b3] Strongly threatening Kb3!} Kf7 74. Bxh6) 73... Bxf2 $14 {[%emt 0:00:00]} 74. Bf4 {[%emt 0:00:39]} Bd4 {[%emt 0:00:02]} 75. Ka3 {[%emt 0:00:34]} Be5 {[%emt 0:00:06]} 76. Be3 $1 {[%emt 0:00:31]} Bd6 {[%emt 0:00:01]} 77. Bg5 $2 {[%emt 0:01:13][%mdl 8192]} (77. Ka4 $11) 77... f4 {[%emt 0:00:01][%cal Bf5f4,Bf4f3][%mdl 32]} 78. Kb3 {[%emt 0:00:36]} Kf5 {[%emt 1:32:51]} 79. Bd8 {[%emt 0:03:57]} f3 {[%emt 0:00:30]} 80. Bh4 {[%emt 0:00:20]} Kg4 {[%emt 0:00:00][%csl LRh4,LRh5]} 81. Bf2 {[%emt 0:00:36]} Kxh5 {[%emt 0:00:00]} 82. Kc2 {[%emt 0:00:00]} Bg3 $4 {[%emt 0:00:00][%mdl 8192]} 83. Bxg3 {[%emt 0:00:12]} f2 {[%emt 0:02:00][%mdl 32768] A wild game.   Weighted Error Value: White=0.35/Black=0.24 (precise) . Loss on time!?} 0-1